fUSD/lending_fUSD_20250214
["ID","MTS","AMOUNT","RATE_DAILY","PERIOD"]
[353033898,1739500255969,-500.0,0.00014684,2]
[353033899,1739500255979,-500.0,0.00014684,2]
[353033900,1739500255990,-500.0,0.00014684,2]
[353033901,1739500255999,-500.0,0.00014684,2]
[353033902,1739500256009,-500.0,0.00014684,2]
[353033903,1739500256020,-500.0,0.00014684,2]
[353033904,1739500256030,-500.0,0.00014684,2]
[353033905,1739500256041,-500.0,0.00014684,2]
[353033906,1739500256050,-567.96128302,0.00014684,2]
[353033907,1739500256061,-500.0,0.00014684,2]
[353033908,1739500256072,-500.0,0.00014684,2]
[353033909,1739500256083,-846.07,0.00014684,2]
[353033910,1739500256095,-500.0,0.00014767,2]
[353033911,1739500256107,-500.0,0.00014767,2]
[353033912,1739500256117,-1008.4209826,0.00014767,2]
[353033913,1739500256224,-531.07735235,0.00013698,2]
[353033914,1739500256234,-500.0,0.00013698,2]
[353033915,1739500256244,-500.0,0.0001378,2]
[353033916,1739500256254,-500.0,0.00013863,2]
[353033917,1739500256265,-500.0,0.00013945,2]
[353033918,1739500256275,-500.0,0.00014027,2]
[353033919,1739500256286,-192.66934623,0.00014109,2]
[353033920,1739500256297,-178.8590174,0.00014767,2]
[353033921,1739500256307,-225.64130373,0.00014767,2]
[353033922,1739500256318,-493.39167678,0.00014767,2]
[353033923,1739500256329,-500.0,0.00014767,2]
[353033924,1739500256340,-500.0,0.00014767,2]
[353033925,1739500256468,-278.15857235,0.00014767,2]
[353033926,1739500256479,-500.0,0.00014767,2]
[353033927,1739500256489,-500.0,0.00014767,2]
[353033928,1739500256498,-398.2812134,0.00014767,2]
[353033929,1739500256508,-500.0,0.00014767,2]
[353033930,1739500256518,-28.43772192,0.00014767,2]
[353033931,1739500256530,-471.56227808,0.00014767,2]
[353033932,1739500256539,-328.21772192,0.00014767,2]
[353033933,1739500256551,-171.78227808,0.00014767,2]
[353033934,1739500256561,-638.2,0.00014767,2]
[353033935,1739500256571,-519.84,0.00014767,2]
[353033936,1739500256581,-500.0,0.00014767,2]
[353033937,1739500256591,-475.86707521,0.00014767,2]
[353033938,1739500256603,-24.13292479,0.00014767,2]
[353033939,1739500256613,-500.0,0.00014767,2]
[353033940,1739500256622,-500.0,0.00014767,2]
[353033941,1739500256632,-500.0,0.00014767,2]
[353033942,1739500256641,-500.0,0.00014767,2]
[353033943,1739500256651,-500.0,0.00014767,2]
[353033944,1739500256661,-500.0,0.00014767,2]
[353033945,1739500256670,-500.0,0.00014767,2]
[353033946,1739500256680,-500.0,0.00014767,2]
[353033947,1739500256689,-846.07,0.00014767,2]
[353033948,1739500256699,-314.27831479,0.00014773,2]
[353033949,1739500256709,-1059.0,0.00014806,2]
[353033950,1739500256718,-500.0,0.00014849,2]
[353033951,1739500256728,-500.0,0.00014849,2]
[353033952,1739500256738,-1187.28,0.00014849,2]
[353033953,1739500256749,-500.0,0.00014849,2]
[353033954,1739500256758,-154.17850353,0.00014849,2]
[353033955,1739500256767,-380.73570286,0.00014849,2]
[353033956,1739500256777,-500.0,0.00014849,2]
[353033957,1739500256787,-500.0,0.00014849,2]
[353033958,1739500256798,-500.0,0.00014849,2]
[353033959,1739500256808,-500.0,0.00014849,2]
[353033960,1739500256819,-638.2,0.00014849,2]
[353033961,1739500256829,-519.84,0.00014849,2]
[353033962,1739500256838,-500.0,0.00014849,2]
[353033963,1739500256847,-500.0,0.00014849,2]
[353033964,1739500256857,-335.4557007,0.00014849,2]
[353033965,1739500256866,-500.0,0.00014849,2]
[353033966,1739500256878,-500.0,0.00014849,2]
[353033967,1739500256888,-480.17957996,0.00014849,2]
[353033968,1739500256898,-500.0,0.00014849,2]
[353033969,1739500256907,-500.0,0.00014849,2]
[353033970,1739500256918,-500.0,0.00014849,2]
[353033971,1739500256928,-557.96006033,0.00014849,2]
[353033972,1739500256937,-846.07,0.00014849,2]
[353033973,1739500256947,-1000.0,0.000149,2]
[353033974,1739500256956,-40433.38323552,0.000149,3]
[353033975,1739500256993,-962.922,0.000149,3]
[353033976,1739500257013,-1396.0,0.0001,2]
[353033977,1739500257024,-35597.32805108,0.000149,3]
[353033978,1739500257116,-500.0,0.00013698,2]
[353033979,1739500257126,-158.63300375,0.0001378,2]
[353033980,1739500257407,-341.36699625,0.0001378,2]
[353033981,1739500257416,-500.0,0.00013863,2]
[353033982,1739500257426,-500.0,0.00013945,2]
[353033983,1739500257436,-500.0,0.00014027,2]
[353033984,1739500257445,-500.0,0.00014109,2]
[353033985,1739500257455,-500.0,0.00014191,2]
[353033986,1739500257464,-613.97,0.00014273,2]
[353033987,1739500257474,-462.45508786,0.000149,3]
[353033988,1739500257485,-43185.92177982,0.000149,3]
[353033989,1739500257497,-1650.94357217,0.000149,3]
[353033990,1739500257618,-112.36233495,0.000149,3]
[353033991,1739500257630,-480493.8325606,0.000149,3]
[353033992,1739500257640,-700.48384,0.000149,2]
[353033993,1739500257649,-500.0,0.00014931,2]
[353033994,1739500257658,-500.0,0.00014931,2]
[353033995,1739500257668,-1187.28,0.00014931,2]
[353033996,1739500257677,-500.0,0.00014931,2]
[353033997,1739500257687,-500.0,0.00014931,2]
[353033998,1739500257696,-534.19720765,0.00014931,2]
[353033999,1739500257706,-194.25048817,0.00014931,2]
[353034000,1739500257716,-500.0,0.00014931,2]
[353034001,1739500257727,-638.2,0.00014931,2]
[353034002,1739500257736,-519.84,0.00014931,2]
[353034003,1739500257746,-500.0,0.00014931,2]
[353034004,1739500257755,-500.0,0.00014931,2]
[353034005,1739500257765,-500.0,0.00014931,2]
[353034006,1739500257775,-500.0,0.00014931,2]
[353034007,1739500257785,-550.31075279,0.00014931,2]
[353034008,1739500257796,-500.0,0.00014931,2]
[353034009,1739500257809,-500.0,0.00014931,2]
[353034010,1739500257819,-846.07,0.00014931,2]
[353034011,1739500257829,-151.359,0.00014939,2]
[353034012,1739500257839,-199.173,0.00014939,2]
[353034013,1739500257850,-150.0,0.00014939,2]
[353034014,1739500257860,-800.46871172,0.00015,2]
[353034015,1739500257870,-5024.50002864,0.00015,2]
[353034016,1739500257880,-600.0,0.00015,2]
[353034017,1739500257890,-464.27801819,0.00015013,2]
[353034018,1739500257900,-299.23108899,0.00015013,2]
[353034019,1739500257910,-1187.28,0.00015013,2]
[353034020,1739500257920,-500.0,0.00015013,2]
[353034021,1739500257930,-337.42593023,0.00015013,2]
[353034022,1739500257940,-500.0,0.00015013,2]
[353034023,1739500257949,-638.2,0.00015013,2]
[353034024,1739500257962,-519.84,0.00015013,2]
[353034025,1739500257972,-500.0,0.00015013,2]
[353034026,1739500257982,-500.0,0.00015013,2]
[353034027,1739500257991,-500.0,0.00015013,2]
[353034028,1739500258001,-246.4761005,0.00015013,2]
[353034029,1739500258010,-500.0,0.00015013,2]
[353034030,1739500258022,-623.51495566,0.00015013,2]
[353034031,1739500258031,-846.07,0.00015013,2]
[353034032,1739500258041,-1116.50946142,0.00015021,2]
[353034033,1739500258051,-449.36571624,0.00015021,2]
[353034034,1739500258061,-500.54752553,0.00015021,2]
[353034035,1739500258071,-1000.0,0.00015022,2]
[353034036,1739500258081,-999.0,0.00015068,2]
[353034037,1739500258091,-268.9,0.00015068,2]
[353034038,1739500258101,-1187.28,0.00015095,2]
[353034039,1739500258111,-500.0,0.00015095,2]
[353034040,1739500258121,-392.19460108,0.00015095,2]
[353034041,1739500258131,-638.2,0.00015095,2]
[353034042,1739500258140,-519.84,0.00015095,2]
[353034043,1739500258150,-577.85601521,0.00015095,2]
[353034044,1739500258160,-500.0,0.00015095,2]
[353034045,1739500258169,-500.0,0.00015095,2]
[353034046,1739500258179,-500.0,0.00015095,2]
[353034047,1739500258190,-846.07,0.00015095,2]
[353034048,1739500258200,-328672.68703586,0.000151,3]
[353034049,1739500258210,-45311.71039075,0.000151,3]
[353034050,1739500258219,-852.09698296,0.000151,2]
[353034051,1739500258229,-1000.0,0.000151,2]
[353034052,1739500258238,-1000.0,0.000151,2]
[353034053,1739500258247,-1000.0,0.000151,2]
[353034054,1739500258256,-1000.0,0.000151,2]
[353034055,1739500258266,-1000.0,0.000151,2]
[353034056,1739500258277,-1000.0,0.000151,2]
[353034057,1739500258287,-1000.0,0.000151,2]
[353034058,1739500258296,-1000.0,0.000151,2]
[353034059,1739500258306,-1000.0,0.000151,2]
[353034060,1739500258316,-1000.0,0.000151,2]
[353034061,1739500258326,-1187.28,0.00015178,2]
[353034062,1739500258335,-627.27744555,0.00015178,2]
[353034063,1739500258345,-638.2,0.00015178,2]
[353034064,1739500258354,-519.84,0.00015178,2]
[353034065,1739500258363,-500.0,0.00015178,2]
[353034066,1739500258373,-596.9692365,0.00015178,2]
[353034067,1739500258382,-534.75660542,0.00015178,2]
[353034068,1739500258391,-846.07,0.00015178,2]
[353034069,1739500258401,-176.08345084,0.00015251,2]
[353034070,1739500258411,-381.99149868,0.00015257,2]
[353034071,1739500258420,-1187.28,0.0001526,2]
[353034072,1739500258430,-638.2,0.0001526,2]
[353034073,1739500258439,-519.84,0.0001526,2]
[353034074,1739500258448,-500.0,0.0001526,2]
[353034075,1739500258459,-846.07,0.0001526,2]
[353034076,1739500258468,-1517.64,0.000153,2]
[353034077,1739500258478,-408.68,0.00015311,2]
[353034078,1739500258487,-1187.28,0.00015342,2]
[353034079,1739500258497,-638.2,0.00015342,2]
[353034080,1739500258506,-519.84,0.00015342,2]
[353034081,1739500258515,-500.0,0.00015342,2]
[353034082,1739500258527,-846.07,0.00015342,2]
[353034083,1739500258537,-1000.0,0.00015391,2]
[353034084,1739500258546,-15982.83928147,0.000154,2]
[353034085,1739500258555,-486.04938577,0.000154,2]
[353034086,1739500258564,-1187.28,0.00015424,2]
[353034087,1739500258574,-638.2,0.00015424,2]
[353034088,1739500258583,-519.84,0.00015424,2]
[353034089,1739500258593,-500.0,0.00015424,2]
[353034090,1739500258603,-846.07,0.00015424,2]
[353034091,1739500258612,-1187.28,0.00015506,2]
[353034092,1739500258621,-638.2,0.00015506,2]
[353034093,1739500258631,-519.84,0.00015506,2]
[353034094,1739500258640,-500.0,0.00015506,2]
[353034095,1739500258650,-846.07,0.00015506,2]
[353034096,1739500258659,-1059.0,0.00015546,2]
[353034097,1739500258669,-1187.34002783,0.00015589,2]
[353034098,1739500258678,-638.38774357,0.00015589,2]
[353034099,1739500258687,-520.04062768,0.00015589,2]
[353034100,1739500258696,-283.88851609,0.00015589,2]
[353034101,1739500258705,-846.1522109,0.00015589,2]
[353034102,1739500258714,-1000.0,0.00015626,2]
[353034103,1739500258723,-1165.99,0.000158,2]
[353034104,1739500258733,-700.0,0.00015828,2]
[353034105,1739500258742,-800.0,0.00015828,2]
[353034106,1739500258751,-2612.0,0.00016,2]
[353034107,1739500258760,-1059.0,0.00016323,2]
[353034108,1739500258770,-200.0,0.0001634,2]
[353034109,1739500258779,-500.0,0.00016438,2]
[353034110,1739500258788,-500.0,0.00016438,2]
[353034111,1739500258801,-500.0,0.00016438,2]
[353034112,1739500258811,-500.0,0.00016438,2]
[353034113,1739500258821,-500.0,0.00016438,2]
[353034114,1739500258830,-500.0,0.00016438,2]
[353034115,1739500258840,-521.68638999,0.00016438,2]
[353034116,1739500258850,-500.0,0.00016438,2]
[353034117,1739500258860,-500.0,0.00016438,2]
[353034118,1739500258870,-500.0,0.00016438,2]
[353034119,1739500258880,-500.0,0.00016438,2]
[353034120,1739500258890,-500.0,0.00016438,2]
[353034121,1739500258900,-500.0,0.00016438,2]
[353034122,1739500258910,-200.0,0.00016438,2]
[353034123,1739500258919,-500.0,0.00016438,2]
[353034124,1739500258929,-200.0,0.00016438,2]
[353034125,1739500258939,-500.0,0.00016438,2]
[353034126,1739500258949,-200.0,0.00016438,2]
[353034127,1739500258958,-200.0,0.00016438,2]
[353034128,1739500258968,-573.05027201,0.00016438,2]
[353034129,1739500258978,-200.0,0.00016438,2]
[353034130,1739500258987,-200.0,0.00016438,2]
[353034131,1739500258997,-200.0,0.00016438,2]
[353034132,1739500259007,-200.0,0.00016438,2]
[353034133,1739500259016,-200.0,0.00016438,2]
[353034134,1739500259028,-175.95194957,0.00016438,2]
[353034135,1739500259037,-300.0,0.00016438,2]
[353034136,1739500259046,-300.0,0.00016438,2]
[353034137,1739500259055,-300.0,0.00016438,2]
[353034138,1739500259065,-300.0,0.00016438,2]
[353034139,1739500259075,-300.0,0.00016438,2]
[353034140,1739500259084,-300.0,0.00016438,2]
[353034141,1739500259094,-300.0,0.00016438,2]
[353034142,1739500259104,-300.0,0.00016438,2]
[353034143,1739500259114,-300.0,0.00016438,2]
[353034144,1739500259123,-300.0,0.00016438,2]
[353034145,1739500259134,-300.0,0.00016438,2]
[353034146,1739500259143,-300.0,0.00016438,2]
[353034147,1739500259153,-300.0,0.00016438,2]
[353034148,1739500259163,-300.0,0.00016438,2]
[353034149,1739500259172,-300.0,0.00016438,2]
[353034150,1739500259181,-300.0,0.00016438,2]
[353034151,1739500259190,-300.0,0.00016438,2]
[353034152,1739500259316,-300.0,0.00016438,2]
[353034153,1739500259326,-300.0,0.00016438,2]
[353034154,1739500259336,-300.0,0.00016438,2]
[353034155,1739500259345,-300.0,0.00016438,2]
[353034156,1739500259355,-221.08246884,0.00016438,2]
[353034157,1739500259365,-150.0,0.00016438,2]
[353034158,1739500259375,-268.9,0.00016438,2]
[353034159,1739500259384,-1326.24762153,0.0001649,2]
[353034160,1739500259394,-2532.17,0.000165,2]
[353034161,1739500259404,-1000.85,0.00016603,2]
[353034162,1739500259413,-487.65,0.00016658,30]
[353034163,1739500259423,-408.68,0.00016703,2]
[353034164,1739500259432,-176.5,0.00016712,2]
[353034165,1739500259442,-1000.0,0.0001679,2]
[353034166,1739500259451,-169.71,0.0001679,2]
[353034167,1739500259461,-393.91,0.00016813,2]
[353034168,1739500259471,-216.99,0.00016813,2]
[353034169,1739500259482,-500.0,0.00016924,2]
[353034170,1739500259492,-650.0,0.00017,2]
[353034171,1739500259501,-176.08345084,0.00017035,2]
[353034172,1739500259512,-1273.0,0.00017069,2]
[353034173,1739500259524,-150.0,0.00017069,2]
[353034174,1739500259533,-3915.0,0.00017083,2]
[353034175,1739500259543,-150.12624122,0.00017123,2]
[353034176,1739500259553,-1059.0,0.00017139,2]
[353034177,1739500259562,-700.0,0.00017198,2]
[353034178,1739500259572,-800.0,0.00017198,2]
[353034179,1739500259582,-999.0,0.0001726,4]
[353034180,1739500259594,-700.48383,0.000174,2]
[353034181,1739500259603,-188.5,0.00017465,2]
[353034182,1739500259613,-700.0,0.000177,6]
[353034183,1739500259622,-2532.17,0.000178,2]
[353034184,1739500259632,-700.0,0.000178,6]
[353034185,1739500259642,-700.0,0.000179,6]
[353034186,1739500259652,-150.0,0.00017939,2]
[353034187,1739500259661,-150.0,0.00017939,2]
[353034188,1739500259671,-1059.0,0.00017996,2]
[353034189,1739500259681,-2065.3781016,0.00018,2]
[353034190,1739500259691,-13358.45,0.00018,2]
[353034191,1739500259701,-5023.4882129,0.00018,14]
[353034192,1739500259711,-155.789353,0.00018,4]
[353034193,1739500259721,-204442.24575008,0.00018,30]
[353034194,1739500259876,2345.1385,8.973e-05,2]
[353034195,1739500335532,1493.6896,8.836e-05,2]
[353034196,1739500337418,4553.8394,8.973e-05,2]
[353034205,1739500365864,394.9388,8.836e-05,2]
[353034207,1739500435676,319.48,8.8e-05,2]
[353034208,1739500607937,6588.3429,8.836e-05,2]
[353034209,1739500620472,229.5364,8.836e-05,2]
[353034210,1739500631199,798.5823,8.836e-05,2]
[353034211,1739500679341,1087.0767,8.836e-05,2]
[353034212,1739500690677,12762.8076,8.836e-05,2]
[353034213,1739500690707,393275.3223,8.836e-05,2]
[353034227,1739501432104,-300.0,9.999e-05,2]
[353034228,1739501432115,-200.0,0.0001,2]
[353034229,1739501432124,-15877.93,0.0001,2]
[353034230,1739501432134,-200.0,0.00010095,2]
[353034231,1739501432145,-354.51,0.00010137,2]
[353034232,1739501432154,-1537.08,0.00010254,2]
[353034233,1739501432164,-150.0,0.00010288,2]
[353034234,1739501432174,-386.8,0.00010322,2]
[353034235,1739501432188,-150.0,0.00010849,2]
[353034236,1739501432198,-420.0,0.00010999,2]
[353034237,1739501432208,-200.0,0.00010999,2]
[353034238,1739501432403,-150.0,0.00011279,2]
[353034239,1739501432421,-3125.34,0.00011281,2]
[353034240,1739501432431,-9342.78,0.00011281,2]
[353034241,1739501432440,-150.99,0.00011281,2]
[353034242,1739501432450,-287.15383908,0.000115,2]
[353034243,1739501432460,-386.8,0.00011613,2]
[353034244,1739501432469,-587.0,0.00012099,2]
[353034245,1739501432479,-150.0,0.0001258,2]
[353034246,1739501432489,-932.79,0.00012581,2]
[353034247,1739501432499,-386.8,0.00012903,2]
[353034248,1739501432509,-823.0,0.00013309,2]
[353034249,1739501432519,-177.2542468,0.00013424,2]
[353034250,1739501432528,-500.0,0.00013698,2]
[353034252,1739501432538,-536.58,0.00013698,2]
[353034254,1739501432547,-500.0,0.00013698,2]
[353034255,1739501432557,-155.32,0.00013699,2]
[353034256,1739501432567,-536.58,0.0001378,2]
[353034257,1739501432576,-500.0,0.0001378,2]
[353034259,1739501432586,-536.58,0.00013863,2]
[353034260,1739501432595,-500.0,0.00013863,2]
[353034262,1739501432606,-536.58,0.00013945,2]
[353034263,1739501432615,-500.0,0.00013945,2]
[353034264,1739501432625,-536.58,0.00014027,2]
[353034265,1739501432634,-500.0,0.00014027,2]
[353034266,1739501432644,-536.58,0.00014109,2]
[353034267,1739501432655,-500.0,0.00014109,2]
[353034268,1739501432665,-2751.0,0.0001417,2]
[353034269,1739501432674,-536.58,0.00014191,2]
[353034270,1739501432684,-500.0,0.00014191,2]
[353034272,1739501432693,-386.8,0.00014193,2]
[353034273,1739501432703,-300.0,0.00014214,2]
[353034275,1739501432712,-500.0,0.00014217,2]
[353034276,1739501432722,-536.58,0.00014273,2]
[353034277,1739501432733,-379.05,0.00014273,2]
[353034278,1739501432742,-200.0,0.0001432,2]
[353034279,1739501432752,-1000.0,0.00014323,2]
[353034280,1739501432761,-263.96191412,0.00014356,2]
[353034281,1739501432774,-272.61808588,0.00014356,2]
[353034282,1739501432783,-500.0,0.00014407,2]
[353034283,1739501432793,-536.58,0.00014438,2]
[353034284,1739501432802,-2000.0,0.00014452,2]
[353034285,1739501432812,-250.0,0.00014452,2]
[353034286,1739501432822,-23900.0,0.00014452,2]
[353034287,1739501432832,-1165.97,0.00014452,2]
[353034288,1739501432843,-222.43,0.000145,2]
[353034289,1739501432853,-536.58,0.0001452,2]
[353034290,1739501432862,-1500.0,0.00014562,2]
[353034291,1739501432871,-536.58,0.00014602,2]
[353034292,1739501432881,-432.0,0.0001464,2]
[353034293,1739501432890,-536.58,0.00014684,2]
[353034294,1739501432899,-178.44,0.00014718,2]
[353034295,1739501432909,-536.58,0.00014767,2]
[353034296,1739501432918,-932.79,0.00014845,2]
[353034297,1739501432928,-536.58,0.00014849,2]
[353034298,1739501432937,-536.58,0.00014931,2]
[353034299,1739501432946,-570.674,0.00014999,2]
[353034300,1739501432956,-639.904,0.00014999,2]
[353034301,1739501432965,-150.0,0.00014999,2]
[353034302,1739501432974,-150.095,0.00014999,2]
[353034303,1739501432983,-536.58,0.00015013,2]
[353034304,1739501432992,-536.58,0.00015095,2]
[353034305,1739501433002,-536.58,0.00015178,2]
[353034306,1739501433011,-536.58,0.0001526,2]
[353034307,1739501433021,-536.58,0.00015342,2]
[353034308,1739501433030,-536.58,0.00015424,2]
[353034309,1739501433040,-536.58,0.00015506,2]
[353034310,1739501433050,-536.76,0.00015589,2]
[353034311,1739501433060,-1000.0,0.00016114,2]
[353034312,1739501433069,-150.0,0.000162,2]
[353034313,1739501433079,-150.0,0.000162,2]
[353034314,1739501433090,-150.0,0.000162,2]
[353034315,1739501433100,-150.0,0.000162,2]
[353034316,1739501433110,-150.0,0.00016244,2]
[353034317,1739501433120,-150.0,0.00016288,2]
[353034318,1739501433130,-150.0,0.00016332,2]
[353034319,1739501433139,-150.0,0.0001635,2]
[353034320,1739501433148,-150.0,0.00016364,2]
[353034321,1739501433157,-150.0,0.00016376,2]
[353034322,1739501433166,-150.0,0.0001642,2]
[353034323,1739501433178,-150.0,0.00016438,2]
[353034324,1739501433189,-300.0,0.00016438,2]
[353034325,1739501433198,-300.0,0.00016438,2]
[353034326,1739501433208,-200.54579756,0.00016438,2]
[353034327,1739501433225,-27271.98252234,0.00016438,2]
[353034328,1739501433244,-150.0,0.00016463,2]
[353034329,1739501433255,-150.0,0.000165,2]
[353034330,1739501433266,-150.0,0.000165,2]
[353034331,1739501433276,-150.0,0.00016507,2]
[353034332,1739501433286,-150.0,0.00016527,2]
[353034333,1739501433296,-150.0,0.00016551,2]
[353034334,1739501433305,-150.0,0.00016575,2]
[353034335,1739501433314,-150.0,0.00016595,2]
[353034336,1739501433324,-150.0,0.00016639,2]
[353034337,1739501433333,-150.0,0.0001665,2]
[353034338,1739501433344,-463.26,0.00016658,30]
[353034339,1739501433354,-150.0,0.00016683,2]
[353034340,1739501433364,-150.0,0.00016691,2]
[353034341,1739501433374,-150.0,0.00016712,2]
[353034342,1739501433383,-150.0,0.00016727,2]
[353034343,1739501433393,-150.0,0.00016771,2]
[353034344,1739501433403,-150.0,0.000168,2]
[353034345,1739501433412,-150.0,0.000168,2]
[353034346,1739501433423,-354.51,0.00016813,2]
[353034347,1739501433432,-150.0,0.00016815,2]
[353034348,1739501433442,-150.0,0.00016849,2]
[353034349,1739501433452,-150.0,0.00016855,2]
[353034350,1739501433462,-150.0,0.00016859,2]
[353034351,1739501433471,-150.0,0.00016902,2]
[353034352,1739501433481,-500.0,0.00016924,2]
[353034353,1739501433491,-600.0,0.00016924,2]
[353034354,1739501433500,-600.0,0.00016924,2]
[353034355,1739501433510,-150.0,0.00016946,2]
[353034356,1739501433519,-150.0,0.0001695,2]
[353034357,1739501433528,-1374.246,0.00016962,2]
[353034358,1739501433538,-150.0,0.00016986,2]
[353034359,1739501433547,-150.0,0.0001699,2]
[353034360,1739501433557,-150.0,0.00017018,2]
[353034361,1739501433566,-150.0,0.00017034,2]
[353034362,1739501433576,-150.0,0.00017078,2]
[353034363,1739501433586,-150.0,0.000171,2]
[353034364,1739501433596,-150.0,0.000171,2]
[353034365,1739501433605,-932.79,0.00017109,2]
[353034366,1739501433615,-150.0,0.00017122,2]
[353034367,1739501433625,-150.0,0.00017123,2]
[353034368,1739501433635,-150.0,0.00017166,2]
[353034369,1739501433644,-150.0,0.00017182,2]
[353034370,1739501433654,-1054.0,0.000172,2]
[353034371,1739501433663,-150.0,0.0001721,2]
[353034372,1739501433673,-150.0,0.0001725,2]
[353034373,1739501433682,-150.0,0.00017254,2]
[353034374,1739501433692,-150.0,0.0001726,2]
[353034375,1739501433701,-150.0,0.00017298,2]
[353034376,1739501433710,-150.0,0.00017341,2]
[353034377,1739501433719,-150.0,0.00017345,2]
[353034378,1739501433728,-150.0,0.00017385,2]
[353034379,1739501433738,-151.02797714,0.00017397,2]
[353034380,1739501433748,-150.0,0.000174,2]
[353034381,1739501433758,-150.0,0.000174,2]
[353034382,1739501433769,-150.0,0.00017429,2]
[353034383,1739501433778,-150.0,0.00017473,2]
[353034384,1739501433788,-150.0,0.00017509,2]
[353034385,1739501433797,-150.0,0.00017517,2]
[353034386,1739501433807,-150.0,0.0001755,2]
[353034387,1739501433816,-150.0,0.00017561,2]
[353034388,1739501433826,-150.0,0.00017605,2]
[353034389,1739501433836,-150.0,0.00017649,2]
[353034390,1739501433846,-150.0,0.00017673,2]
[353034391,1739501433856,-150.0,0.00017693,2]
[353034392,1739501433866,-150.0,0.000177,2]
[353034393,1739501433876,-150.0,0.000177,2]
[353034394,1739501433886,-150.0,0.00017737,2]
[353034395,1739501433895,-150.0,0.00017751,2]
[353034396,1739501433905,-150.0,0.0001778,2]
[353034397,1739501433915,-150.76613659,0.000178,2]
[353034398,1739501433924,-24505.55981605,0.000178,2]
[353034399,1739501433933,-24505.55981601,0.00017811,2]
[353034400,1739501433943,-24505.55981601,0.00017822,2]
[353034401,1739501433952,-150.0,0.00017824,2]
[353034402,1739501433962,-170.18121318,0.00017833,2]
[353034403,1739501433971,-24505.55981601,0.00017833,2]
[353034404,1739501433981,-150.0,0.00017836,2]
[353034405,1739501433990,-24505.55981601,0.00017844,2]
[353034406,1739501433999,-150.0,0.0001785,2]
[353034407,1739501434009,-24505.55981601,0.00017856,2]
[353034408,1739501434019,-500.0,0.00017856,2]
[353034409,1739501434028,-24505.55981601,0.00017867,2]
[353034410,1739501434039,-150.0,0.00017868,2]
[353034411,1739501434049,-150.0,0.00017871,2]
[353034412,1739501434059,-24505.55981601,0.00017878,2]
[353034413,1739501434069,-150.0,0.00017887,2]
[353034414,1739501434079,-24505.55981601,0.00017889,2]
[353034415,1739501434089,-500.0,0.00017893,2]
[353034416,1739501434099,-590.41682118,0.00017893,2]
[353034417,1739501434109,-500.0,0.00017893,2]
[353034418,1739501434119,-500.0,0.00017893,2]
[353034419,1739501434129,-500.0,0.00017894,2]
[353034420,1739501434139,-200.0,0.00017894,2]
[353034421,1739501434149,-500.0,0.00017894,2]
[353034422,1739501434158,-500.0,0.00017894,2]
[353034423,1739501434168,-500.0,0.00017894,2]
[353034424,1739501434181,-500.0,0.00017894,2]
[353034425,1739501434191,-500.0,0.00017894,2]